[Event "2nd FIDE WCC Rapid G12"]
[Site "Minsk"]
[Date "2018.06.22"]
[Round "2"]
[White "Cherepanova, Evita"]
[Black "Petrova, Varvara"]
[Result "1-0"]
[ECO "C06"]
[WhiteElo "1604"]
[BlackElo "1500"]
[Annotator "NA RC"]
[PlyCount "62"]
[EventDate "2018.06.22"]
[EventType "rapid"]
[EventCountry "BLR"]
[SourceTitle "playchess.com"]
[Source "ChessBase"]
[SourceQuality "1"]
[TimeControl "600+5"]

1. e4 {[%emt 0:00:00]} e6 {[%emt 0:00:00]} 2. d4 {[%emt 0:00:00]} d5 {[%emt 0:00:02]} 3. Nd2 {[%emt 0:00:00]} Nf6 {[%emt 0:00:03]} 4. e5 {[%emt 0:00:00]} Nfd7 {[%emt 0:00:01]} 5. Bd3 {[%emt 0:00:00]} c5 {[%emt 0:00:02]} 6. c3 {[%emt 0:00:01]} Nc6 {[%emt 0:00:07]} 7. Ne2 {[%emt 0:00:02]} cxd4 {[%emt 0:00:18]} 8. cxd4 {[%emt 0:00:02]} Qb6 {[%emt 0:00:03]} 9. Nf3 {[%emt 0:00:02]} Bb4+ {[%emt 0:00:06]} 10. Bd2 {[%emt 0:00:09]} Bxd2+ {[%emt 0:00:29]} 11. Qxd2 {[%emt 0:00:02]} f6 {[%emt 0:00:08]} 12. exf6 {[%emt 0:00:08]} Nxf6 {[%emt 0:00:01]} 13. O-O {[%emt 0:00:35]} O-O {[%emt 0:00:02]} 14. Rfe1 {[%emt 0:00:42]} Bd7 {[%emt 0:00:12]} 15. h3 {[%emt 0:01:02]} Rae8 {[%emt 0:00:33]} 16. Rac1 {[%emt 0:00:31]} Qd8 {[%emt 0:01:55]} 17. Nf4 {[%emt 0:02:27]} Qe7 {[%emt 0:00:44]} 18. Bb1 {[%emt 0:00:54]} Qd6 {[%emt 0:00:10]} 19. Ne5 {[%emt 0:00:11]} Bc8 {[%emt 0:01:13]} 20. Re2 {[%emt 0:00:29]} Nd7 {[%emt 0:01:26]} 21. Nxd7 {[%emt 0:01:01]} Qxd7 {[%emt 0:00:41]} 22. Rce1 {[%emt 0:00:38]} Qf7 {[%emt 0:00:12]} 23. g3 {[%emt 0:00:34]} Re7 {[%emt 0:00:44]} 24. b4 {[%emt 0:01:12]} Qf6 {[%emt 0:00:54]} 25. Qd3 {[%emt 0:00:25]} g5 {[%emt 0:00:53]} 26. Nxd5 {[%emt 0:00:13]} exd5 {[%emt 0:00:04]} 27. Rxe7 {[%emt 0:00:03]} Bf5 {[%emt 0:01:10]} 28. Qxf5 {[%emt 0:00:10]} Qxf5 29. Bxf5 Nxe7 30. Rxe7 Rxf5 31. Rxb7 Rf7 1-0

[Event "2nd FIDE WCC Rapid G12"]
[Site "Minsk"]
[Date "2018.06.22"]
[Round "2"]
[White "Zavivaeva, Emilia"]
[Black "Yaroshenko, Sofiya"]
[Result "1-0"]
[ECO "C14"]
[WhiteElo "1556"]
[BlackElo "1540"]
[Annotator "NA RC"]
[PlyCount "79"]
[EventDate "2018.06.22"]
[EventType "rapid"]
[EventCountry "BLR"]
[SourceTitle "playchess.com"]
[Source "ChessBase"]
[SourceQuality "1"]
[TimeControl "600+5"]

1. e4 {[%emt 0:00:09]} e6 {[%emt 0:00:01]} 2. d4 {[%emt 0:00:01]} d5 {[%emt 0:00:01]} 3. Nc3 {[%emt 0:00:02]} Nf6 {[%emt 0:00:01]} 4. Bg5 {[%emt 0:00:26]} Be7 {[%emt 0:00:01]} 5. e5 {[%emt 0:00:03]} Nfd7 {[%emt 0:00:00]} 6. Bxe7 {[%emt 0:00:03]} Qxe7 {[%emt 0:00:04]} 7. Qg4 {[%emt 0:00:20]} O-O {[%emt 0:00:32]} 8. Bd3 {[%emt 0:00:32]} h6 {[%emt 0:00:08]} 9. f4 {[%emt 0:00:11]} a6 {[%emt 0:00:26]} 10. f5 {[%emt 0:00:41]} exf5 {[%emt 0:00:25]} 11. Qxf5 {[%emt 0:00:07]} g6 {[%emt 0:00:35]} 12. Nxd5 {[%emt 0:00:36]} Qh4+ {[%emt 0:00:27]} 13. Qf2 {[%emt 0:00:06]} Qxf2+ {[%emt 0:00:18]} 14. Kxf2 {[%emt 0:00:02]} c6 {[%emt 0:00:13]} 15. Ne7+ {[%emt 0:00:22]} Kg7 {[%emt 0:00:08]} 16. Nf3 {[%emt 0:00:13]} Nb6 {[%emt 0:00:11]} 17. Nxc8 {[%emt 0:00:03]} Rxc8 {[%emt 0:00:01]} 18. Rhe1 {[%emt 0:00:24]} Re8 {[%emt 0:00:06]} 19. Nd2 {[%emt 0:00:22]} N8d7 {[%emt 0:00:08]} 20. Ne4 {[%emt 0:00:04]} Re6 {[%emt 0:00:39]} 21. a4 {[%emt 0:00:50]} a5 {[%emt 0:00:10]} 22. Nd6 {[%emt 0:01:17]} Nd5 {[%emt 0:01:00]} 23. Nxb7 {[%emt 0:01:24]} Rb8 {[%emt 0:00:35]} 24. Nxa5 {[%emt 0:00:11]} Rxb2 {[%emt 0:00:09]} 25. Nc4 {[%emt 0:00:07]} Rb8 {[%emt 0:00:12]} 26. a5 {[%emt 0:00:09]} Ra8 {[%emt 0:00:10]} 27. a6 {[%emt 0:00:22]} Nb4 {[%emt 0:00:02]} 28. Be4 {[%emt 0:00:11]} Rxa6 {[%emt 0:00:20]} 29. Rxa6 {[%emt 0:00:40]} Nxa6 {[%emt 0:00:02]} 30. Ra1 {[%emt 0:00:07]} Nb4 {[%emt 0:00:07]} 31. Ra7 {[%emt 0:00:25]} Nf8 {[%emt 0:00:27]} 32. Nd6 {[%emt 0:00:09]} Kg8 {[%emt 0:00:59]} 33. Rb7 {[%emt 0:00:30]} Nd5 {[%emt 0:00:04]} 34. c4 {[%emt 0:00:12]} Nc3 {[%emt 0:00:38]} 35. Bxc6 {[%emt 0:00:15]} f6 {[%emt 0:00:28]} 36. Bd5 {[%emt 0:00:31]} Nxd5 {[%emt 0:00:02]} 37. cxd5 {[%emt 0:00:02]} Rxd6 {[%emt 0:00:19]} 38. exd6 {[%emt 0:00:01]} f5 {[%emt 0:00:25]} 39. d7 {[%emt 0:00:06]} Nxd7 {[%emt 0:00:03]} 40. Rxd7 {[%emt 0:00:01]} 1-0

[Event "2nd FIDE WCC Rapid G12"]
[Site "Minsk"]
[Date "2018.06.22"]
[Round "2"]
[White "Andrukhovich, Elizaveta"]
[Black "Krupnova, Anna"]
[Result "0-1"]
[ECO "B24"]
[WhiteElo "1472"]
[BlackElo "1761"]
[Annotator "NA RC"]
[PlyCount "102"]
[EventDate "2018.06.22"]
[EventType "rapid"]
[EventCountry "BLR"]
[SourceTitle "playchess.com"]
[Source "ChessBase"]
[SourceQuality "1"]
[TimeControl "600+5"]

1. e4 {[%emt 0:00:00]} c5 {[%emt 0:00:01]} 2. Nc3 {[%emt 0:00:00]} Nc6 {[%emt 0:00:04]} 3. g3 {[%emt 0:00:01]} g6 {[%emt 0:00:03]} 4. Bg2 {[%emt 0:00:01]} Bg7 {[%emt 0:00:01]} 5. d3 {[%emt 0:00:05]} Nf6 {[%emt 0:00:19]} 6. Nge2 {[%emt 0:00:04]} O-O {[%emt 0:00:14]} 7. O-O {[%emt 0:00:03]} d6 {[%emt 0:00:41]} 8. h3 {[%emt 0:00:01]} Rb8 {[%emt 0:01:24]} 9. f4 {[%emt 0:00:13]} Bd7 {[%emt 0:00:56]} 10. f5 {[%emt 0:00:51]} b5 {[%emt 0:01:48]} 11. Bg5 {[%emt 0:01:23]} b4 {[%emt 0:01:16]} 12. Nb1 {[%emt 0:02:28]} Ne5 {[%emt 0:01:28]} 13. Nd2 {[%emt 0:00:29]} d5 {[%emt 0:00:24]} 14. Bxf6 {[%emt 0:00:49]} Bxf6 {[%emt 0:00:05]} 15. fxg6 {[%emt 0:00:16]} hxg6 {[%emt 0:00:05]} 16. exd5 {[%emt 0:00:12]} Bf5 {[%emt 0:01:05]} 17. g4 {[%emt 0:01:21]} Bc8 {[%emt 0:00:19]} 18. Ne4 {[%emt 0:00:47]} Bg7 {[%emt 0:00:21]} 19. c3 {[%emt 0:00:55]} bxc3 {[%emt 0:00:43]} 20. bxc3 {[%emt 0:00:05]} c4 {[%emt 0:00:13]} 21. dxc4 {[%emt 0:00:23]} Nxc4 {[%emt 0:00:04]} 22. Qd3 {[%emt 0:00:21]} Qb6+ {[%emt 0:00:05]} 23. Kh1 {[%emt 0:00:04]} Ne3 {[%emt 0:00:05]} 24. Rab1 {[%emt 0:00:18]} Ba6 {[%emt 0:00:09]} 25. Rxb6 {[%emt 0:00:36]} Bxd3 {[%emt 0:00:01]} 26. Rxb8 {[%emt 0:00:10]} Rxb8 {[%emt 0:00:02]} 27. Re1 {[%emt 0:00:03]} Nxg2 {[%emt 0:00:10]} 28. Kxg2 Bxe4+ 29. Kf2 {[%emt 0:00:09]} Bxd5 {[%emt 0:00:03]} 30. a4 {[%emt 0:00:05]} Rb2 {[%emt 0:00:02]} 31. Ke3 {[%emt 0:00:07]} Bg2 {[%emt 0:00:15]} 32. Nf4 {[%emt 0:00:08]} Bh6 {[%emt 0:00:03]} 33. h4 {[%emt 0:00:06]} Bxf4+ {[%emt 0:00:06]} 34. Kxf4 {[%emt 0:00:01]} e6 {[%emt 0:00:04]} 35. c4 {[%emt 0:00:05]} Rb4 {[%emt 0:00:02]} 36. Rc1 {[%emt 0:00:02]} Bd5 {[%emt 0:00:02]} 37. Ke3 {[%emt 0:00:04]} Rxc4 {[%emt 0:00:02]} 38. Rxc4 {[%emt 0:00:02]} Bxc4 {[%emt 0:00:00]} 39. Kd4 {[%emt 0:00:00]} Be2 {[%emt 0:00:09]} 40. g5 {[%emt 0:00:01]} Kf8 {[%emt 0:00:15]} 41. a5 {[%emt 0:00:02]} Ke7 {[%emt 0:00:06]} 42. Ke5 {[%emt 0:00:05]} Bb5 {[%emt 0:00:08]} 43. Ke4 {[%emt 0:00:05]} Kd6 {[%emt 0:00:04]} 44. Kd4 {[%emt 0:00:00]} Be2 {[%emt 0:00:02]} 45. Ke3 {[%emt 0:00:06]} Bb5 {[%emt 0:00:03]} 46. Kd4 {[%emt 0:00:02]} a6 {[%emt 0:00:05]} 47. Ke4 {[%emt 0:00:04]} Bc6+ {[%emt 0:00:14]} 48. Kd4 {[%emt 0:00:03]} e5+ {[%emt 0:00:05]} 49. Ke3 {[%emt 0:00:04]} Ke6 {[%emt 0:00:03]} 50. Kd3 {[%emt 0:00:02]} Kf5 {[%emt 0:00:02]} 51. Ke3 {[%emt 0:00:01]} Kg4 {[%emt 0:00:02]} 0-1

[Event "2nd FIDE WCC Rapid G12"]
[Site "Minsk"]
[Date "2018.06.22"]
[Round "2"]
[White "Osmolovska, Yevheniia"]
[Black "Kastanieda, Alla"]
[Result "1-0"]
[ECO "C00"]
[WhiteElo "1391"]
[BlackElo "1379"]
[Annotator "NA RC"]
[PlyCount "79"]
[EventDate "2018.06.22"]
[EventType "rapid"]
[EventCountry "BLR"]
[SourceTitle "playchess.com"]
[Source "ChessBase"]
[SourceQuality "1"]
[TimeControl "600+5"]

1. e4 {[%emt 0:00:00]} e6 {[%emt 0:00:01]} 2. d3 {[%emt 0:00:00]} d5 {[%emt 0:00:02]} 3. Nd2 {[%emt 0:00:01]} c5 {[%emt 0:00:02]} 4. Ngf3 {[%emt 0:00:01]} Nf6 {[%emt 0:00:07]} 5. g3 {[%emt 0:00:02]} Nc6 {[%emt 0:00:07]} 6. Bg2 {[%emt 0:00:01]} dxe4 {[%emt 0:00:06]} 7. dxe4 {[%emt 0:00:01]} e5 {[%emt 0:00:00]} 8. O-O {[%emt 0:00:04]} Bg4 {[%emt 0:00:46]} 9. c3 {[%emt 0:00:04]} Be7 {[%emt 0:00:10]} 10. Qc2 {[%emt 0:00:02]} O-O {[%emt 0:00:20]} 11. h3 {[%emt 0:00:24]} Bh5 {[%emt 0:00:17]} 12. Nc4 {[%emt 0:00:19]} Qc7 {[%emt 0:00:04]} 13. Ne3 {[%emt 0:00:04]} Rfd8 {[%emt 0:01:09]} 14. Nf5 {[%emt 0:00:07]} Bg6 {[%emt 0:00:08]} 15. Nxe7+ {[%emt 0:00:09]} Qxe7 {[%emt 0:00:04]} 16. Nh4 {[%emt 0:00:10]} b5 {[%emt 0:00:34]} 17. Nf5 {[%emt 0:00:10]} Bxf5 {[%emt 0:00:26]} 18. exf5 {[%emt 0:00:01]} Rac8 {[%emt 0:00:01]} 19. Be3 {[%emt 0:00:22]} Nd4 {[%emt 0:00:41]} 20. Qb1 {[%emt 0:01:06]} Nc6 {[%emt 0:00:30]} 21. Re1 {[%emt 0:00:06]} h6 {[%emt 0:01:47]} 22. a4 {[%emt 0:00:11]} a6 {[%emt 0:01:01]} 23. axb5 {[%emt 0:00:14]} axb5 {[%emt 0:00:01]} 24. Ra6 {[%emt 0:00:02]} Nb8 25. Rb6 {[%emt 0:00:11]} Qd7 {[%emt 0:00:53]} 26. Rb7 {[%emt 0:00:08]} Qe8 {[%emt 0:00:05]} 27. Qa2 {[%emt 0:00:39]} c4 {[%emt 0:00:42]} 28. Qa5 {[%emt 0:00:32]} Nd5 {[%emt 0:00:48]} 29. Qxb5 {[%emt 0:00:29]} Qxb5 {[%emt 0:00:12]} 30. Rxb5 {[%emt 0:00:02]} Nxe3 {[%emt 0:00:01]} 31. Rxe3 {[%emt 0:00:04]} Rd1+ {[%emt 0:00:08]} 32. Kh2 {[%emt 0:00:01]} f6 {[%emt 0:00:09]} 33. Bd5+ {[%emt 0:00:06]} Kh8 {[%emt 0:00:01]} 34. Be6 {[%emt 0:00:02]} Rcd8 {[%emt 0:00:04]} 35. Bxc4 {[%emt 0:00:05]} R1d2 {[%emt 0:00:58]} 36. Re2 {[%emt 0:00:03]} R2d7 {[%emt 0:00:02]} 37. Be6 {[%emt 0:00:08]} Rc7 {[%emt 0:00:01]} 38. c4 {[%emt 0:00:03]} Na6 {[%emt 0:00:06]} 39. b4 {[%emt 0:00:05]} Rd4 {[%emt 0:00:26]} 40. Rb6 {[%emt 0:00:11]} 1-0

[Event "2nd FIDE WCC Rapid G12"]
[Site "Minsk"]
[Date "2018.06.22"]
[Round "2"]
[White "Petrova, Elizaveta"]
[Black "Omonova, Umida"]
[Result "0-1"]
[ECO "D78"]
[WhiteElo "1368"]
[BlackElo "1733"]
[Annotator "NA RC"]
[PlyCount "106"]
[EventDate "2018.06.22"]
[EventType "rapid"]
[EventCountry "BLR"]
[SourceTitle "playchess.com"]
[Source "ChessBase"]
[SourceQuality "1"]
[TimeControl "600+5"]

1. d4 {[%emt 0:00:00]} Nf6 {[%emt 0:00:01]} 2. Nf3 {[%emt 0:00:00]} d5 {[%emt 0:00:01]} 3. g3 {[%emt 0:00:00]} g6 {[%emt 0:00:11]} 4. Bg2 {[%emt 0:00:00]} Bg7 {[%emt 0:00:02]} 5. O-O {[%emt 0:00:02]} O-O {[%emt 0:00:02]} 6. c4 {[%emt 0:00:19]} c6 {[%emt 0:00:10]} 7. Nbd2 {[%emt 0:00:08]} Ne4 {[%emt 0:00:14]} 8. e3 {[%emt 0:00:04]} Nd7 {[%emt 0:00:32]} 9. Nxe4 {[%emt 0:00:26]} dxe4 {[%emt 0:00:02]} 10. Nd2 {[%emt 0:00:07]} f5 {[%emt 0:00:04]} 11. b3 {[%emt 0:00:16]} c5 {[%emt 0:00:04]} 12. Bb2 {[%emt 0:00:06]} Nb6 {[%emt 0:00:07]} 13. Nb1 {[%emt 0:01:40]} a5 {[%emt 0:00:24]} 14. Qd2 {[%emt 0:02:55]} cxd4 {[%emt 0:00:05]} 15. Bxd4 {[%emt 0:00:11]} Bxd4 {[%emt 0:00:08]} 16. Qxd4 {[%emt 0:00:05]} Qxd4 {[%emt 0:00:07]} 17. exd4 {[%emt 0:00:01]} Rd8 {[%emt 0:00:03]} 18. Rd1 {[%emt 0:00:04]} a4 {[%emt 0:00:05]} 19. c5 {[%emt 0:00:36]} axb3 {[%emt 0:00:07]} 20. a3 {[%emt 0:00:23]} Nd5 {[%emt 0:00:23]} 21. Bf1 {[%emt 0:00:43]} Be6 {[%emt 0:00:03]} 22. Bc4 {[%emt 0:00:05]} Nc7 {[%emt 0:00:13]} 23. Bxe6+ {[%emt 0:00:31]} Nxe6 {[%emt 0:00:01]} 24. Nc3 {[%emt 0:00:39]} Nxd4 {[%emt 0:00:05]} 25. a4 {[%emt 0:00:31]} Rac8 {[%emt 0:00:24]} 26. Nb5 {[%emt 0:01:05]} Nxb5 {[%emt 0:00:02]} 27. Rxd8+ {[%emt 0:00:01]} Rxd8 {[%emt 0:00:11]} 28. axb5 {[%emt 0:00:02]} Rc8 {[%emt 0:00:01]} 29. Rb1 {[%emt 0:00:05]} Rxc5 {[%emt 0:00:02]} 30. Rxb3 {[%emt 0:00:00]} b6 {[%emt 0:00:05]} 31. Kf1 {[%emt 0:00:10]} Kf7 {[%emt 0:00:01]} 32. Ke2 {[%emt 0:00:01]} Ke6 {[%emt 0:00:02]} 33. Ke3 {[%emt 0:00:01]} Kd5 {[%emt 0:00:08]} 34. Kf4 {[%emt 0:00:41]} h6 {[%emt 0:00:07]} 35. h4 {[%emt 0:00:09]} Kc4 {[%emt 0:00:14]} 36. Rb2 {[%emt 0:00:07]} Kd3 {[%emt 0:00:02]} 37. Rb3+ {[%emt 0:00:12]} Kc2 {[%emt 0:00:04]} 38. Rb4 {[%emt 0:00:05]} e5+ {[%emt 0:00:20]} 39. Ke3 {[%emt 0:00:04]} g5 {[%emt 0:00:11]} 40. hxg5 {[%emt 0:00:03]} hxg5 {[%emt 0:00:01]} 41. Ke2 {[%emt 0:00:08]} Kc3 {[%emt 0:00:06]} 42. Rb1 {[%emt 0:00:01]} Kc4 {[%emt 0:00:01]} 43. Rh1 {[%emt 0:00:11]} f4 {[%emt 0:00:06]} 44. Rh5 {[%emt 0:00:08]} g4 {[%emt 0:00:30]} 45. Rg5 {[%emt 0:00:07]} Kd4 {[%emt 0:00:10]} 46. Rxg4 {[%emt 0:00:19]} Rc2+ {[%emt 0:00:01]} 47. Kf1 {[%emt 0:00:04]} f3 {[%emt 0:00:10]} 48. Kg1 {[%emt 0:00:03]} Kd3 {[%emt 0:00:05]} 49. Rh4 {[%emt 0:00:10]} e3 {[%emt 0:00:02]} 50. fxe3 {[%emt 0:00:01]} Kxe3 {[%emt 0:00:01]} 51. Rh5 {[%emt 0:00:07]} e4 {[%emt 0:00:02]} 52. g4 {[%emt 0:00:05]} Rg2+ {[%emt 0:00:03]} 53. Kf1 {[%emt 0:00:03]} Rxg4 {[%emt 0:00:06]} 0-1

[Event "2nd FIDE WCC Rapid G12"]
[Site "Minsk"]
[Date "2018.06.22"]
[Round "2"]
[White "Misiuk, Monika"]
[Black "Blokhin, Sofia"]
[Result "1-0"]
[ECO "D35"]
[WhiteElo "1288"]
[BlackElo "1500"]
[Annotator "NA RC"]
[PlyCount "139"]
[EventDate "2018.06.22"]
[EventType "rapid"]
[EventCountry "BLR"]
[SourceTitle "playchess.com"]
[Source "ChessBase"]
[SourceQuality "1"]
[TimeControl "600+5"]

1. d4 {[%emt 0:00:00]} d5 {[%emt 0:00:01]} 2. c4 {[%emt 0:00:00]} e6 {[%emt 0:00:01]} 3. Nc3 {[%emt 0:00:04]} Nf6 {[%emt 0:00:01]} 4. e3 {[%emt 0:00:29]} Be7 {[%emt 0:00:03]} 5. Bd3 {[%emt 0:00:06]} b6 {[%emt 0:00:02]} 6. Nf3 {[%emt 0:00:06]} Nbd7 {[%emt 0:00:08]} 7. O-O {[%emt 0:00:05]} Bb7 {[%emt 0:00:02]} 8. b3 {[%emt 0:00:35]} c5 {[%emt 0:00:03]} 9. cxd5 {[%emt 0:00:50]} exd5 {[%emt 0:00:09]} 10. Bb2 {[%emt 0:00:21]} Rc8 {[%emt 0:00:15]} 11. dxc5 {[%emt 0:00:11]} bxc5 {[%emt 0:00:34]} 12. Be2 {[%emt 0:00:41]} O-O {[%emt 0:00:14]} 13. Rc1 {[%emt 0:00:40]} Nb6 {[%emt 0:00:42]} 14. Qd2 {[%emt 0:01:59]} Ne4 {[%emt 0:00:53]} 15. Nxe4 {[%emt 0:00:41]} dxe4 {[%emt 0:00:01]} 16. Qxd8 {[%emt 0:00:19]} Rcxd8 {[%emt 0:00:22]} 17. Ne1 {[%emt 0:00:57]} Rd2 {[%emt 0:00:04]} 18. Rc2 {[%emt 0:00:06]} Rfd8 {[%emt 0:00:11]} 19. Bc3 {[%emt 0:00:36]} Rxc2 {[%emt 0:01:31]} 20. Nxc2 {[%emt 0:00:03]} Nd5 {[%emt 0:00:08]} 21. Bb2 {[%emt 0:00:22]} Nb6 {[%emt 0:00:34]} 22. Rd1 {[%emt 0:00:23]} Rc8 {[%emt 0:00:45]} 23. h3 {[%emt 0:00:19]} g6 {[%emt 0:00:10]} 24. Bg4 {[%emt 0:00:19]} f5 {[%emt 0:00:04]} 25. Be2 {[%emt 0:00:04]} Bd5 {[%emt 0:00:31]} 26. Na3 {[%emt 0:00:20]} c4 {[%emt 0:00:49]} 27. Nxc4 {[%emt 0:00:35]} Bxc4 {[%emt 0:00:12]} 28. Bxc4+ {[%emt 0:00:08]} Nxc4 {[%emt 0:00:02]} 29. bxc4 {[%emt 0:00:03]} Rxc4 {[%emt 0:00:12]} 30. Rd7 {[%emt 0:00:05]} Kf8 {[%emt 0:01:12]} 31. Rxa7 {[%emt 0:00:11]} Ke8 {[%emt 0:00:47]} 32. g3 {[%emt 0:00:40]} Rc2 {[%emt 0:00:12]} 33. Bd4 {[%emt 0:00:03]} Rc1+ {[%emt 0:00:14]} 34. Kg2 {[%emt 0:00:02]} Rc2 {[%emt 0:00:17]} 35. a4 {[%emt 0:00:07]} Ra2 {[%emt 0:00:22]} 36. a5 {[%emt 0:00:05]} Ra4 {[%emt 0:00:12]} 37. Bb6 {[%emt 0:00:16]} Ra2 {[%emt 0:00:27]} 38. h4 {[%emt 0:00:04]} h6 {[%emt 0:00:09]} 39. a6 {[%emt 0:00:08]} g5 {[%emt 0:00:05]} 40. hxg5 {[%emt 0:00:01]} hxg5 {[%emt 0:00:03]} 41. Bd4 {[%emt 0:00:04]} Ra4 {[%emt 0:00:11]} 42. Ra8+ {[%emt 0:00:02]} Kd7 {[%emt 0:00:07]} 43. a7 {[%emt 0:00:01]} Bb4 {[%emt 0:00:15]} 44. Rg8 {[%emt 0:00:04]} Bc3 {[%emt 0:00:13]} 45. a8=Q {[%emt 0:00:05]} Rxa8 {[%emt 0:00:02]} 46. Rxa8 {[%emt 0:00:02]} Bxd4 {[%emt 0:00:01]} 47. exd4 {[%emt 0:00:00]} Ke6 {[%emt 0:00:01]} 48. Ra4 {[%emt 0:00:03]} Kd5 {[%emt 0:00:02]} 49. Kf1 {[%emt 0:00:02]} f4 {[%emt 0:00:01]} 50. gxf4 {[%emt 0:00:01]} gxf4 {[%emt 0:00:01]} 51. Ke2 {[%emt 0:00:02]} Ke6 {[%emt 0:00:05]} 52. Ra5 {[%emt 0:00:03]} Kd6 {[%emt 0:00:03]} 53. d5 {[%emt 0:00:02]} Kd7 {[%emt 0:00:04]} 54. Ra6 {[%emt 0:00:02]} Kc7 {[%emt 0:00:01]} 55. Rh6 {[%emt 0:00:01]} Kd7 {[%emt 0:00:01]} 56. d6 {[%emt 0:00:01]} Kd8 {[%emt 0:00:04]} 57. Rh7 {[%emt 0:00:04]} Ke8 {[%emt 0:00:04]} 58. d7+ {[%emt 0:00:04]} Kd8 {[%emt 0:00:01]} 59. Kd2 {[%emt 0:00:01]} e3+ {[%emt 0:00:06]} 60. fxe3 {[%emt 0:00:01]} fxe3+ {[%emt 0:00:01]} 61. Kxe3 {[%emt 0:00:01]} Kc7 {[%emt 0:00:01]} 62. d8=N+ {[%emt 0:00:04]} Kxd8 {[%emt 0:00:01]} 63. Kd4 {[%emt 0:00:02]} Ke8 {[%emt 0:00:02]} 64. Ke5 {[%emt 0:00:01]} Kf8 {[%emt 0:00:00]} 65. Ke6 {[%emt 0:00:01]} Kg8 {[%emt 0:00:04]} 66. Ra7 {[%emt 0:00:02]} Kf8 {[%emt 0:00:03]} 67. Rb7 {[%emt 0:00:01]} Kg8 {[%emt 0:00:02]} 68. Kf6 {[%emt 0:00:01]} Kh8 {[%emt 0:00:01]} 69. Kg6 {[%emt 0:00:01]} Kg8 {[%emt 0:00:01]} 70. Rb8# {[%emt 0:00:01]} 1-0

[Event "2nd FIDE WCC Rapid G12"]
[Site "Minsk"]
[Date "2018.06.22"]
[Round "3"]
[White "Krupnova, Anna"]
[Black "Thai, Ngoc Tuong Minh"]
[Result "1-0"]
[ECO "D02"]
[WhiteElo "1761"]
[BlackElo "1384"]
[Annotator "NA RC"]
[PlyCount "123"]
[EventDate "2018.06.22"]
[EventType "rapid"]
[EventCountry "BLR"]
[SourceTitle "playchess.com"]
[Source "ChessBase"]
[SourceQuality "1"]
[TimeControl "600+5"]

1. d4 {[%emt 0:00:00]} d5 {[%emt 0:00:01]} 2. Nf3 {[%emt 0:00:00]} Nf6 {[%emt 0:00:01]} 3. g3 {[%emt 0:00:01]} c5 {[%emt 0:00:03]} 4. Bg2 {[%emt 0:01:06]} Bf5 {[%emt 0:00:02]} 5. O-O {[%emt 0:00:08]} Nc6 {[%emt 0:00:01]} 6. c4 {[%emt 0:00:04]} e6 {[%emt 0:00:12]} 7. Nc3 {[%emt 0:00:47]} dxc4 {[%emt 0:00:12]} 8. Qa4 {[%emt 0:00:36]} Qd7 {[%emt 0:02:07]} 9. dxc5 {[%emt 0:01:29]} Nd5 {[%emt 0:01:18]} 10. Qxc4 {[%emt 0:01:25]} Nxc3 {[%emt 0:00:13]} 11. Qxc3 {[%emt 0:00:09]} O-O-O {[%emt 0:00:50]} 12. Bf4 {[%emt 0:00:29]} f6 {[%emt 0:00:10]} 13. b4 {[%emt 0:02:42]} e5 {[%emt 0:00:03]} 14. Be3 {[%emt 0:00:13]} e4 {[%emt 0:00:58]} 15. Nd2 {[%emt 0:00:15]} Qd5 {[%emt 0:00:59]} 16. a4 {[%emt 0:00:52]} Nd4 {[%emt 0:00:22]} 17. Rfe1 {[%emt 0:00:23]} Kb8 {[%emt 0:00:23]} 18. Rad1 {[%emt 0:00:10]} Ne6 {[%emt 0:00:50]} 19. h3 {[%emt 0:00:20]} Nd4 {[%emt 0:02:30]} 20. Bxd4 {[%emt 0:00:20]} Qxd4 {[%emt 0:00:01]} 21. Nxe4 {[%emt 0:00:05]} Qxc3 {[%emt 0:00:28]} 22. Rxd8+ {[%emt 0:00:05]} Kc7 {[%emt 0:00:01]} 23. Nxc3 Kxd8 24. Rd1+ {[%emt 0:00:06]} Kc7 {[%emt 0:00:02]} 25. e4 {[%emt 0:00:02]} Be6 {[%emt 0:00:06]} 26. Nd5+ {[%emt 0:00:02]} Kc6 {[%emt 0:00:04]} 27. f4 {[%emt 0:00:07]} f5 {[%emt 0:00:16]} 28. exf5 {[%emt 0:00:05]} Bxf5 {[%emt 0:00:03]} 29. Ne7+ {[%emt 0:00:05]} Kc7 {[%emt 0:00:01]} 30. Nxf5 {[%emt 0:00:01]} g6 {[%emt 0:00:03]} 31. Nd6 {[%emt 0:00:04]} Bg7 {[%emt 0:00:01]} 32. Bxb7 {[%emt 0:00:04]} Bc3 {[%emt 0:00:05]} 33. Nb5+ {[%emt 0:00:08]} Kxb7 {[%emt 0:00:01]} 34. Nxc3 {[%emt 0:00:01]} a5 {[%emt 0:00:03]} 35. b5 {[%emt 0:00:03]} Re8 {[%emt 0:00:01]} 36. Kf2 {[%emt 0:00:03]} Re7 {[%emt 0:00:08]} 37. Rd6 {[%emt 0:00:06]} Rc7 {[%emt 0:00:08]} 38. c6+ {[%emt 0:00:02]} Kc8 {[%emt 0:00:06]} 39. Nd5 {[%emt 0:00:04]} Rf7 {[%emt 0:00:02]} 40. Nb6+ {[%emt 0:00:10]} Kb8 {[%emt 0:00:06]} 41. Rd7 {[%emt 0:00:06]} Rxd7 {[%emt 0:00:08]} 42. Nxd7+ {[%emt 0:00:06]} Kc7 {[%emt 0:00:01]} 43. Ke3 {[%emt 0:00:03]} Kc8 {[%emt 0:00:03]} 44. b6 {[%emt 0:00:04]} h6 {[%emt 0:00:03]} 45. b7+ {[%emt 0:00:05]} Kc7 {[%emt 0:00:00]} 46. b8=Q+ {[%emt 0:00:02]} Kxc6 {[%emt 0:00:03]} 47. Ne5+ {[%emt 0:00:05]} Kc5 {[%emt 0:00:01]} 48. Qb5+ {[%emt 0:00:03]} Kd6 {[%emt 0:00:01]} 49. Qc6+ {[%emt 0:00:02]} Ke7 {[%emt 0:00:02]} 50. Nxg6+ {[%emt 0:00:01]} Kf7 {[%emt 0:00:01]} 51. Ne5+ {[%emt 0:00:02]} Ke7 {[%emt 0:00:01]} 52. Qc5+ {[%emt 0:00:02]} Ke6 {[%emt 0:00:01]} 53. f5+ {[%emt 0:00:03]} Kxf5 {[%emt 0:00:02]} 54. Nf3+ {[%emt 0:00:04]} Kf6 {[%emt 0:00:01]} 55. Qe5+ {[%emt 0:00:03]} Kg6 {[%emt 0:00:02]} 56. Nh4+ {[%emt 0:00:03]} Kf7 {[%emt 0:00:01]} 57. Kf4 {[%emt 0:00:03]} Kg8 {[%emt 0:00:02]} 58. Kf5 {[%emt 0:00:03]} h5 {[%emt 0:00:01]} 59. Kg6 {[%emt 0:00:25]} Kf8 {[%emt 0:00:02]} 60. Qd6+ {[%emt 0:00:12]} Ke8 {[%emt 0:00:03]} 61. Qc7 {[%emt 0:00:10]} Kf8 {[%emt 0:00:01]} 62. Qf7# {[%emt 0:00:01]} 1-0

[Event "2nd FIDE WCC Rapid G12"]
[Site "Minsk"]
[Date "2018.06.22"]
[Round "3"]
[White "Tarasenka, Aliaksandra"]
[Black "Misiuk, Monika"]
[Result "1-0"]
[ECO "B22"]
[WhiteElo "1747"]
[BlackElo "1288"]
[Annotator "NA RC"]
[PlyCount "41"]
[EventDate "2018.06.22"]
[EventType "rapid"]
[EventCountry "BLR"]
[SourceTitle "playchess.com"]
[Source "ChessBase"]
[SourceQuality "1"]
[TimeControl "600+5"]

1. e4 {[%emt 0:00:00]} c5 {[%emt 0:00:01]} 2. c3 {[%emt 0:00:00]} g6 {[%emt 0:00:03]} 3. Nf3 {[%emt 0:00:05]} Bg7 {[%emt 0:00:04]} 4. Bc4 {[%emt 0:00:03]} e6 {[%emt 0:00:09]} 5. d4 {[%emt 0:00:21]} cxd4 {[%emt 0:00:07]} 6. cxd4 {[%emt 0:00:01]} d5 {[%emt 0:00:26]} 7. exd5 {[%emt 0:01:04]} exd5 {[%emt 0:00:05]} 8. Bb3 {[%emt 0:00:36]} Nf6 {[%emt 0:00:07]} 9. O-O {[%emt 0:00:11]} O-O {[%emt 0:00:02]} 10. Nc3 {[%emt 0:00:10]} Nc6 {[%emt 0:00:26]} 11. Bg5 {[%emt 0:00:33]} Be6 {[%emt 0:00:12]} 12. Qd3 {[%emt 0:00:49]} h6 {[%emt 0:00:33]} 13. Bf4 {[%emt 0:00:53]} Rc8 {[%emt 0:00:21]} 14. Rfe1 {[%emt 0:02:14]} Re8 {[%emt 0:00:25]} 15. Rad1 {[%emt 0:00:25]} a6 {[%emt 0:01:35]} 16. Ne5 {[%emt 0:00:41]} Bf5 {[%emt 0:00:29]} 17. Qd2 {[%emt 0:00:46]} h5 {[%emt 0:00:27]} 18. Bg5 {[%emt 0:00:19]} Ne7 {[%emt 0:01:14]} 19. Qf4 {[%emt 0:00:43]} Qd6 {[%emt 0:00:39]} 20. Nxg6 {[%emt 0:00:19]} Bxg6 {[%emt 0:00:16]} 21. Qxd6 {[%emt 0:00:01]} 1-0